Cogmind - Beta 13 @@@ ROGUE MODE // 2024.04.17 @ 12:33:37 Player: Nebula avali Result: Destroyed by Y-45 Defender with Heavy Assault Rifle Performance ------------- Evolutions (2) 1000 Regions Visited (4) 800 Robots Destroyed (9) 45 Value Destroyed (174) 174 Prototype IDs (1) 20 Alien Tech Used (0) 0 Bonus (200) 200 TOTAL SCORE: 2239 Bonus ------- Pacifist 200 Cogmind --------- Core Integrity 0/550 Matter 149/300 Energy 100/100 System Corruption 0% Temperature Cool (18) Movement Core (200) Ox3 Location -8/Storage Parts ------- > --- POWER (1) -------- (None) > --- PROPULSION (2) --- (None) > --- UTILITY (6) ------ Small Storage Unit > --- WEAPON (2) ------- Maul Maul > --- INVENTORY (8) ---- Ion Engine Ion Engine Beam Rifle Peak State ------------ > --- POWER ------------ Cooled Ion Engine > --- PROPULSION ------- Compact Wheel Compact Wheel > --- UTILITY ---------- Small Storage Unit > --- WEAPON ----------- Maul > --- INVENTORY -------- Ion Engine Ion Engine Rocket Launcher Rocket Launcher Rocket Launcher Maul [Rating: 9] Favorites ----------- Power Ion Engine Engine Ion Engine Propulsion Compact Wheel Leg Aluminum Leg Wheel Compact Wheel Utility Small Storage Unit Storage Small Storage Unit Weapon Maul Energy Gun EM Pulse Gun Ballistic Gun Assault Rifle Launcher Rocket Launcher Impact Weapon Maul Build | -11 -10 -9 -8 -8 ------- Run | Yrd Mat Mat Mat Sto Slots Evolved 4 | . . 2 2 . Power . | . . . . . Propulsion . | . . . . . Utility 4 | . . 2 2 . Weapon . | . . . . . Parts Attached 12 | . 3 2 . 7 Power 2 | . . 2 . . Engine 2 | . . 2 . . Core . | . . . . . Reactor . | . . . . . Propulsion 2 | . 2 . . . Treads . | . . . . . Leg . | . . . . . Wheel 2 | . 2 . . . Hover . | . . . . . Flight . | . . . . . Utility . | . . . . . Device . | . . . . . Storage . | . . . . . Processor . | . . . . . Hackware . | . . . . . Protection . | . . . . . Artifact . | . . . . . Weapon 8 | . 1 . . 7 Energy Gun 1 | . . . . 1 Energy Cannon . | . . . . . Ballistic Gun . | . . . . . Ballistic Cannon . | . . . . . Launcher 4 | . . . . 4 Special Weapon . | . . . . . Impact Weapon 3 | . 1 . . 2 Slashing Weapon . | . . . . . Piercing Weapon . | . . . . . Special Melee Weapon . | . . . . . Unidentified Prototypes 1 | . . 1 . . Parts Lost 6 | . . . . 6 Power 1 | . . . . 1 Propulsion 2 | . . . . 2 Utility . | . . . . . Weapon 3 | . . . . 3 Highest Loss Streak 3 | . . . . 3 To Critical Strikes . | . . . . . Average Slot Usage (%) 51 | . 74 54 45 30 Engine 9 | . 14 10 9 3 Leg 2 | . 12 . . . Wheel 16 | . 15 22 18 5 Storage 10 | . 14 11 9 9 Energy Gun 1 | . 4 . . 2 Impact Weapon 9 | . 7 11 9 8 Naked Turns . | . . . . . Heaviest Build 16 | 14 14 16 16 16 Greatest Support 32 | 20 32 32 32 32 Greatest Overweight (x) 4 | . . . . 4 Average Overweight (x) . | . . . . 1 Largest Inventory Capacity 8 | . 8 8 8 8 Average Capacity 8 | . 8 8 8 8 Most Carried 8 | . 8 7 7 7 Average Carried 5 | . 4 5 7 5 Final Capacity 8 | 8 8 8 8 8 Final Carried 7 | 6 5 7 7 3 Class Distribution -------------------- 100% | Mutant Dominant Class ---------------- Mutant | -10/Materials Mutant | -9/Materials Mutant | -8/Materials Mutant | -8/Storage Resources | -11 -10 -9 -8 -8 ----------- Run | Yrd Mat Mat Mat Sto Matter Collected 227 | 179 . 48 . . Remotely . | . . . . . Salvage Created 122 | . . 67 . 55 Parts 14 | . . 3 . 11 Haulers Intercepted 1 | . . 1 . . Recyclers Shooed 1 | . . . . 1 Parts Field Recycled . | . . . . . Retrieved Matter . | . . . . . Parts Self-Destructed . | . . . . . Prevented . | . . . . . Kills | -11 -10 -9 -8 -8 ------- Run | Yrd Mat Mat Mat Sto Combat Hostiles Destroyed 6 | . . . . 6 AOE 6 | . . . . 6 Classes Destroyed 6 | . . 2 . 4 Worker 1 | . . . . 1 Hauler 1 | . . 1 . . Watcher 1 | . . 1 . . Swarmer 4 | . . . . 4 Grunt 1 | . . . . 1 Sentry 1 | . . . . 1 Best Kill Streak 6 | . . 1 . 6 Combat Bots Only 5 | . . . . 5 Max Kills in Single Turn 3 | . . 1 . 3 Gunslinging . | . . . . . Exploded 2 | . . . . 2 Melee . | . . . . . Uniques/NPCs Destroyed . | . . . . . Combat | -11 -10 -9 -8 -8 -------- Run | Yrd Mat Mat Mat Sto Hostile Shots Fired 123 | . . 24 . 99 Missed 25 | . . 4 . 21 Damage Taken 1458 | . . 261 . 1197 Core 667 | . . 102 . 565 Absorbed by Shields . | . . . . . Core Remaining (%) 91 | 100 100 74 . . Volleys Fired 9 | . . . . 9 Largest 2 | . . . . 2 Hottest 66 | . . . . 66 Shots Fired 10 | . . . . 10 Gun 2 | . . . . 2 Cannon . | . . . . . Launcher 8 | . . . . 8 Special . | . . . . . Kinetic . | . . . . . Thermal 2 | . . . . 2 Explosive 8 | . . . . 8 Electromagnetic . | . . . . . Robot Hit Streak 4 | . . . . 4 Robot Miss Streak 2 | . . . . 2 Penetration Max . | . . . . . Secondary Targets . | . . . . . Shots Hit Robots 11 | . . 2 . 9 Core Hits 17 | . . 1 . 16 Critical Kills 1 | . . 1 . . Critical Parts Destroyed . | . . . . . Critical Strikes 1 | . . 1 . . Smash 1 | . . 1 . . Melee Attacks 6 | . 1 3 . 2 Impact 6 | . 1 3 . 2 Slashing . | . . . . . Piercing . | . . . . . Sneak Attacks 2 | . . 1 . 1 Combat Hostiles . | . . . . . Follow-up Attacks . | . . . . . Damage Inflicted 1105 | . . 139 . 966 Guns 15 | . . . . 15 Cannons . | . . . . . Explosions 838 | . . . . 838 Melee 252 | . . 139 . 113 Ramming . | . . . . . Kinetic . | . . . . . Thermal 15 | . . . . 15 Explosive 838 | . . . . 838 Electromagnetic . | . . . . . Impact 252 | . . 139 . 113 Slashing . | . . . . . Piercing . | . . . . . Highest Corruption 4 | . . 4 . . Average Corruption 2 | . . 2 . . Corruption Purged . | . . . . . Corruption Blocked . | . . . . . Effects 2 | . . 2 . . Data Loss (minor) 1 | . . 1 . . Data Loss (major) 1 | . . 1 . . Overload Shots . | . . . . . Overflow Damage 105 | . . 21 . 84 Projectiles . | . . . . . Explosions 84 | . . . . 84 Melee 21 | . . 21 . . Knockbacks 2 | . . 1 . 1 Impact 2 | . . 1 . 1 Kinetic . | . . . . . Secondary . | . . . . . Self-Inflicted Damage 218 | . . . . 218 Shots 7 | . . . . 7 Rammed . | . . . . . Targets Rammed . | . . . . . Kicked . | . . . . . Crushed . | . . . . . Highest Temperature 6 | . . . . 6 Average Temperature 4 | . . . . 4 Received Heat Transfer 390 | . . 102 . 288 Siege Activations . | . . . . . Robots Corrupted . | . . . . . Combat Hostiles . | . . . . . Parts Fried 2 | . . 2 . . Impact Corruptions 2 | . . 2 . . Robots Melted . | . . . . . Combat Hostiles . | . . . . . Parts Melted . | . . . . . Heat Transferred 37 | . . . . 37 Parts Sabotaged . | . . . . . Parts Stolen . | . . . . . Parts Stripped . | . . . . . Power Chain Reactions . | . . . . . Alert | -11 -10 -9 -8 -8 ------- Run | Yrd Mat Mat Mat Sto Peak Influence 244 | . 1 120 65 244 Initial 50 | . . . 50 27 Average 53 | . . 33 63 130 Maximum Alert Level 1 | . . . . 1 Low Security (%) 94 | . 100 100 100 79 Level 1 5 | . . . . 20 Level 2 . | . . . . . Level 3 . | . . . . . Level 4 . | . . . . . Level 5 . | . . . . . High Security . | . . . . . Max Security . | . . . . . Squads Dispatched 5 | . 1 3 1 . Investigation 1 | . . 1 . . Extermination . | . . . . . Reinforcement 4 | . 1 2 1 . Assault . | . . . . . Garrison . | . . . . . Intercept . | . . . . . Searches Triggered . | . . . . . Construction Impeded . | . . . . . Haulers Reinforced . | . . . . . Active Scanning Responses . | . . . . . Cargo Convoy Interrupts . | . . . . . Stealth | -11 -10 -9 -8 -8 --------- Run | Yrd Mat Mat Mat Sto Distress Signals 1 | . . . . 1 Communications Jammed . | . . . . . Distress Signals . | . . . . . Times Spotted 24 | . 2 9 3 10 Peak Tracking Total 6 | . 2 6 3 6 Tactical Retreats 2 | . . 2 . . Traps | -11 -10 -9 -8 -8 ------- Run | Yrd Mat Mat Mat Sto Traps Triggered 1 | . . 1 . . Indirectly . | . . . . . Trap Hack Attempts . | . . . . . Triggered . | . . . . . Disarmed . | . . . . . Reprogrammed . | . . . . . Reused . | . . . . . Traps Extracted . | . . . . . Installed . | . . . . . Triggered . | . . . . . Machines | -11 -10 -9 -8 -8 ---------- Run | Yrd Mat Mat Mat Sto Machines Disabled 2 | . . . . 2 Max in Single Turn 1 | . . . . 1 Machines Repaired . | . . . . . Machines Dismantled . | . . . . . Machines Sabotaged . | . . . . . Overloaded Fab Kills . | . . . . . Hacking | -11 -10 -9 -8 -8 --------- Run | Yrd Mat Mat Mat Sto Machines Accessed 1 | . . 1 . . Terminals 1 | . . 1 . . Fabricators . | . . . . . Repair Stations . | . . . . . Recycling Units . | . . . . . Scanalyzers . | . . . . . Garrison Access . | . . . . . Total Hacks 2 | . . 2 . . Successful . | . . . . . Failed 2 | . . 2 . . Catastrophic 1 | . . 1 . . Database Lockouts . | . . . . . Manual 2 | . . 2 . . Terminals 2 | . . 2 . . Fabricators . | . . . . . Repair Stations . | . . . . . Recycling Units . | . . . . . Scanalyzers . | . . . . . Garrison Access . | . . . . . Terminal Hacks . | . . . . . Fabricator Hacks . | . . . . . Repair Station Hacks . | . . . . . Recycling Unit Hacks . | . . . . . Scanalyzer . | . . . . . Garrison Access Hacks . | . . . . . Unauthorized Hacks . | . . . . . Terminals . | . . . . . Fabricators . | . . . . . Repair Stations . | . . . . . Recycling Units . | . . . . . Scanalyzers . | . . . . . Garrison Access . | . . . . . Data Cores Recovered . | . . . . . Used . | . . . . . Hacking Detections 1 | . . 1 . . Full Trace Events 1 | . . 1 . . Feedback Events . | . . . . . Feedback Blocked . | . . . . . Robot Schematics Acquired . | . . . . . Robots Built . | . . . . . Authchips . | . . . . . Time . | . . . . . Total Robot Build Rating . | . . . . . Part Schematics Acquired . | . . . . . Parts Built . | . . . . . Authchips . | . . . . . Time . | . . . . . Total Part Build Rating . | . . . . . Parts Repaired . | . . . . . Time . | . . . . . Parts Recycled . | . . . . . Recycled Matter . | . . . . . Retrieved Matter . | . . . . . Retrieved Components . | . . . . . Parts Scanalyzed . | . . . . . Part Schematics Acquired . | . . . . . Parts Damaged . | . . . . . Bothacking | -11 -10 -9 -8 -8 ------------ Run | Yrd Mat Mat Mat Sto Used RIF Installer . | . . . . . Robots Hacked . | . . . . . Non-combat . | . . . . . Combat . | . . . . . Robot Hacks Applied . | . . . . . Relay Couplers Released . | . . . . . Fabnet Peak Effective % . | . . . . . Robots Rewired . | . . . . . Allies Hacked . | . . . . . Hacks Repelled . | . . . . . Allies | -11 -10 -9 -8 -8 -------- Run | Yrd Mat Mat Mat Sto Total Allies . | . . . . . Largest Group . | . . . . . Highest-Rated Group . | . . . . . Highest-Rated Ally . | . . . . . Total Orders . | . . . . . Ally Attacks . | . . . . . Total Damage . | . . . . . Kills . | . . . . . Allies Corrupted . | . . . . . Allies Melted . | . . . . . Intel | -11 -10 -9 -8 -8 ------- Run | Yrd Mat Mat Mat Sto Robot Analysis Total . | . . . . . Derelict Logs Recovered . | . . . . . Drone Launches . | . . . . . Drone Recoveries . | . . . . . Exploration | -11 -10 -9 -8 -8 ------------- Run | Yrd Mat Mat Mat Sto Turns Passed 475 | . 95 225 33 122 Spaces Moved 382 | 1 74 212 32 63 Core 24 | . . . . 24 Treads . | . . . . . Legs 31 | 1 30 . . . Wheels 327 | . 44 212 32 39 Hover . | . . . . . Flight . | . . . . . Fastest Speed 100 | 120 100 100 100 100 Average Speed 108 | 120 108 100 100 140 Slowest Speed 250 | 120 120 100 100 250 Overloaded Moves . | . . . . . Propulsion Burnouts . | . . . . . Robots Hopped . | . . . . . Cave-ins Triggered . | . . . . . Exploration Rate (%) 16 | 2 16 31 9 25 Regions Visited 4 Branch Regions 1 Pre-discovered Areas . | . . . . . Known Exits Taken . | . . . . . Unknown Exits Taken 4 | 1 1 1 1 . Scrap Searched . | . . . . . Spaces Dug 2 | . 1 1 . . Terrain Destroyed 59 | . 1 1 . 57 Melee 2 | . 1 1 . . Projectile . | . . . . . AOE 57 | . . . . 57 Terrain Rammed . | . . . . . Walls Destroyed . | . . . . . Machines Disabled . | . . . . . Actions | -11 -10 -9 -8 -8 --------- Run | Yrd Mat Mat Mat Sto Total 429 | . 92 219 33 85 Wait 3 | . . 1 2 . Move 378 | . 73 211 31 63 Hop . | . . . . . Pick Up 4 | . 4 . . . Fast Attach 4 | . 1 2 . 1 Attach 8 | . 2 . . 6 Detach 9 | . 4 2 . 3 Swap . | . . . . . Drop 8 | . 7 . . 1 Fire 9 | . . . . 9 Melee 6 | . 1 3 . 2 Ram . | . . . . . Kick . | . . . . . Crush . | . . . . . Escape Stasis . | . . . . . Rewire . | . . . . . Trap . | . . . . . Miscellaneous . | . . . . . Route ------- -11/Scrapyard -10/Materials -9/Materials (discovered 2 exits: [*Mat] / [*Min]) -8/Materials -8/Storage History --------- Turn | Location | Event 1 | -11/Scrapyard | Discovered new exit (range 0) 1 | -11/Scrapyard | Entered Materials 94 | -10/Materials | Discovered new exit (range 3) 96 | -10/Materials | Entered another Materials area 96 | -9/Materials | Evolved 2 slots: Utility x2 151 | -9/Materials | Discovered new exit (range 16) 301 | -9/Materials | Build established: Mutant 303 | -9/Materials | Discovered new exit (range 16) 321 | -9/Materials | Entered another Materials area 321 | -8/Materials | Evolved 2 slots: Utility x2 349 | -8/Materials | Discovered new exit (range 5) 354 | -8/Materials | Entered Storage 426 | -8/Storage | Lost 3 parts (1p2n) 451 | -8/Storage | Core integrity fell below 50% 471 | -8/Storage | Core integrity fell below 20% 476 | -8/Storage | Destroyed by Y-45 Defender with Heavy Assault Rifle Last Messages --------------- 00409_ R-06 Scavenger collects Lgt. Assault Rifle. 00410_ The unstable cave ceiling collapses. 00410_ Acquired Unknown Energy Gun. 00410_ Identified Beam Rifle. 00413_ R-06 Scavenger collects Wheel. 00431_ Sneak attack on R-06 Scavenger. 00431_ R-06 Scavenger knocked back. 00450_ Terminal disabled. 00452_ Compression Vault explodes. 00453_ K-01 Serf collects debris. 00454_ Rocket Launcher destroyed. 00455_ The unstable cave ceiling collapses. 00456_ Rocket Launcher destroyed. 00456_ G-50 Soldier destroyed. 00458_ Rocket Launcher destroyed. 00458_ Destroyed Rocket Launcher. 00466_ R-06 Scavenger collects Hvy. Laser. 00466_ K-01 Serf collects debris. 00470_ R-06 Scavenger collects Adv. Heat Sink. 00471_ K-01 Serf collects debris. Map ----- +----------------------------------------------------+ | ?????????????????????????????????????????????? | | ?????????????????????????????????????????????? | | ?????????????????????????????????????????????? | | ?????????????????????????????????????????????? | | ?????????????????????????????????????????????? | | ?????????????????????????????????????????????? | | ?????????????????????????????????????????????? | | ?????????????????????????????????????????????? | | ?????????????????????????????????????????????? | | ?????????????????????????????????????????????? | | ?????????????????????????????????????????????? | | ?????????????????????????????????????????????? | | ?????????????????????????????????????????????? | | ????????????????????????#########????????????? | | ???????????????????????? / ????????????? | | ???????????????????????? ] #???????????? | | ????????########???????# #???????????? | | ????????# #+#+##### #???????????? | | ????##??# " ?? # ! ! ????????????? | | ??### ### #???? # ?????????????? | | ?## # ## #????# + !!???????????????? | | ?# % #???## r# ?????????????????? | | ?# = #??## ##????+##???????????? | | ## #### g ### +???????????? | | ## % + a #???????????? | | # ] =#### @ #???????????? | | ## #?# Y ## #???????????? | | ?### # #?# #?????????????????? | | ??# # #?# #?????????????????? | | ??## ## #?# #?????????????????? | | ???# #########?# #?????????????????? | | ???# #?????????# #?????????????????? | | ???# #?????????# #?????????????????? | | ???# #?????????#Y #?????????????????? | | ???# #????????? #?????????????????? | | #### #????????## #?????????????????? | | #?????????# ##?????????????????? | | #?????????### ##??????????????????? | | #???????????#######???????????????????? | | ########?????????????????????????????????????? | | ?????????????????????????????????????????????? | | ?????????????????????????????????????????????? | | ?????????????????????????????????????????????? | | ?????????????????????????????????????????????? | | ?????????????????????????????????????????????? | | ?????????????????????????????????????????????? | | | | | | | | | +----------------------------------------------------+ Best States ------------- Heat Dissipation 31 Energy Generation 14 Energy Capacity 280 Matter Stores 287 Matter Capacity 300 Sight Range 16 Terrain Scan Density 10 Evasion (%) 55 Item Schematics ----------------- None Robot Schematics ------------------ None Fabricated ------------ Nothing Alien Tech Used ----------------- None Achievements -------------- None Challenges ------------ None Game ------ Seed frogmind Manual? 1 Play Time 00:05:32 Cumulative 42.4 hours Start 2024.04.17 @ 12:25:39 End 2024.04.17 @ 12:33:37 Sessions 1 Manual Loads 0 Difficulty Rogue Special Mode None Game No. 74 Rogue 73 Adventurer 1 Explorer 0 Win Type - Total 2 Types 2/0/0/0/0/0/0/0/0 Lore% 26 Gallery% 47 Achievement% 39 Wizard Run 0 Options --------- Layout 0 ASCII 0 Keyboard 0 Movement Numpad Keybinds 0 Fullscreen 1 Font 18/SmallcapsGlow Map View 76x50 Zoom Use 0% Tactical HUD 1 Map Filters NONE Filters NONE Steam 1 RUN: 4528955a-91a4-417d-a852-2281d24d13f2